bitfinex-derivatives/quotes_SOLF0:USTF0_20250311
["timestamp","ask_amount","ask_price","bid_price","bid_amount"]
[1741682810548,68.19849193,124.32,124.22,43.3332]
[1741682810752,68.19849193,124.32,124.22,78.26356663]
[1741682810952,33.2681253,124.32,124.22,78.26356663]
[1741682811255,265.64,124.33,124.22,78.26356663]
[1741682811552,0.05183368,124.29,124.27,8.0478]
[1741682811854,0.05183368,124.29,124.28,36.88]
[1741682812955,0.05183368,124.29,124.27,0.05387283]
[1741682813163,8.0477,124.28,124.27,0.05387283]
[1741682817060,302.93036663,124.28,124.16,36.66]
[1741682817266,34.93036663,124.24,124.17,3.1965]
[1741682817563,8.0517,124.22,124.17,11.251]
[1741682817857,34.93036663,124.24,124.17,3.1965]
[1741682818062,8.0526,124.21,124.17,11.251]
[1741682818360,0.0606204,124.22,124.19,0.05540743]
[1741682819367,0.0606204,124.22,124.2,36.56]
[1741682819570,34.93036663,124.27,124.2,36.56]
[1741682820760,0.04627596,124.25,124.22,0.06115749]
[1741682820959,8.051,124.23,124.22,0.06115749]
[1741682823161,34.93036663,124.24,124.16,5.9915]
[1741682823362,34.93036663,124.24,124.11,191.0]
[1741682823363,34.93036663,124.21,124.14,36.42]
[1741682823569,34.93036663,124.21,124.12,6.004]
[1741682823769,34.93036663,124.18,124.12,6.004]
[1741682824463,0.06014109,124.16,124.14,0.06087711]
[1741682825063,8.0562,124.15,124.14,0.06087711]
[1741682827169,8.0562,124.15,124.14,7.711e-05]
[1741682829273,42.98656663,124.15,124.14,7.711e-05]
[1741682829871,308.68656663,124.15,124.14,7.711e-05]
[1741682830968,344.66656663,124.15,124.14,7.711e-05]
[1741682831167,8.0607,124.08,124.07,6.2811]
[1741682831366,34.93036663,124.11,124.04,2.9114]
[1741682831676,8.0616,124.07,124.04,2.9114]
[1741682832172,8.0608,124.08,124.04,10.9744]
[1741682832473,0.06119089,124.07,124.04,2.97232702]
[1741682833269,8.0627,124.05,124.04,2.97232702]
[1741682833468,8.0627,124.05,124.04,0.06092702]
[1741682834877,42.99306663,124.05,124.04,2.702e-05]
[1741682835173,8.0627,124.05,124.04,2.702e-05]
[1741682836269,273.9027,124.05,124.04,2.702e-05]
[1741682836473,265.84,124.05,123.98,42.0082]
[1741682836977,265.84,124.05,123.96,36.0]
[1741682837173,79.3531502,124.08,123.97,3.104]
[1741682837368,301.82,124.07,123.97,3.104]
[1741682837572,8.0629,124.05,123.97,3.104]
[1741682837773,0.05121091,124.03,124.01,0.05431823]
[1741682838173,8.11541091,124.03,124.01,0.05431823]
[1741682838372,0.05121091,124.03,124.01,0.05431823]
[1741682839472,0.05121091,124.03,124.01,8.11931823]
[1741682839678,265.84,124.07,124.01,36.21431823]
[1741682839876,8.0631,124.05,124.01,36.21431823]
[1741682840072,265.84,124.07,124.01,36.21431823]
[1741682840573,8.0624,124.06,124.01,36.21431823]
[1741682840779,0.05791612,124.05,124.01,0.05431823]
[1741682840975,8.064,124.03,124.01,0.05431823]
[1741682841174,0.05791612,124.05,124.01,0.05431823]
[1741682842977,0.05791612,124.05,124.02,8.0641]
[1741682843368,0.05791612,124.05,124.02,36.2]
[1741682843576,8.12061612,124.05,124.02,36.2]
[1741682844077,0.05791612,124.05,124.02,36.2]
[1741682844678,0.05791612,124.05,124.01,0.05431823]
[1741682845176,8.0646,124.02,124.01,0.05431823]
[1741682847384,57.57904872,124.02,123.96,2.9078]
[1741682847571,21.55904872,124.0,123.9,6.0147]
[1741682847776,21.55904872,123.98,123.91,36.02]
[1741682847974,21.55904872,123.98,123.9,9.0208]
[1741682848178,57.57904872,123.98,123.9,9.0208]
[1741682848376,21.55904872,123.96,123.9,9.0208]
[1741682848577,8.0717,123.92,123.9,9.0208]
[1741682848777,57.79904872,123.94,123.92,0.05726437]
[1741682848984,0.06166555,123.92,123.86,6.0149]
[1741682849182,21.62071427,123.92,123.86,6.0149]
[1741682849379,0.06166555,123.92,123.86,6.0149]
[1741682849575,21.55904872,123.96,123.9,8.0723]
[1741682849779,21.55904872,123.96,123.9,36.28]
[1741682850778,0.05970433,123.94,123.92,0.05725644]
[1741682851385,21.61875305,123.94,123.86,6.0149]
[1741682851581,47.28785827,123.97,123.86,6.0149]
[1741682851582,21.55904872,123.92,123.86,6.0149]
[1741682851782,8.0729,123.9,123.86,6.0149]
[1741682851984,21.55904872,123.9,123.86,6.0149]
[1741682852377,35.14273587,123.9,123.86,6.0149]
[1741682852576,0.05121506,123.89,123.87,0.0550288]
[1741682853176,8.12481506,123.89,123.87,0.0550288]
[1741682853678,0.05121506,123.89,123.87,0.0550288]
[1741682854186,0.05121506,123.89,123.87,8.1289288]
[1741682854484,41.23580184,123.88,123.87,36.24]
[1741682854681,17.09630184,123.88,123.87,36.24]
[1741682854988,21.7090422,123.89,123.87,36.24]
[1741682855280,19.9076422,123.89,123.88,8.0737]
[1741682855585,35.14273587,123.94,123.87,36.24]
[1741682855978,35.14273587,123.92,123.87,36.24]
[1741682856178,35.2035534,123.92,123.89,0.06038143]
[1741682856379,2.9164,123.91,123.89,0.06038143]
[1741682856781,35.2035534,123.92,123.89,0.06038143]
[1741682856983,0.06081753,123.92,123.89,0.06038143]
[1741682857985,0.06081753,123.92,123.91,8.0718]
[1741682858186,0.06081753,123.92,123.89,0.06038143]
[1741682859980,8.0718,123.91,123.89,0.06038143]
[1741682860385,0.06081753,123.92,123.89,8.13298143]
[1741682860688,0.06081753,123.92,123.89,0.06038143]
[1741682861288,8.13231753,123.92,123.89,0.06038143]
[1741682861488,0.06081753,123.92,123.89,0.06038143]
[1741682861686,0.06081753,123.92,123.9,8.0724]
[1741682862388,0.06081753,123.92,123.91,8.0718]
[1741682862585,0.06081753,123.92,123.89,0.06038143]
[1741682863281,8.0719,123.91,123.89,0.06038143]
[1741682863487,0.06081753,123.92,123.89,0.06038143]
[1741682863686,35.2035534,123.92,123.89,0.06038143]
[1741682863981,8.0724,123.9,123.89,0.06038143]
[1741682864985,8.0751,123.86,123.8,265.98]
[1741682865186,38.06773587,123.89,123.83,36.0]
[1741682865587,38.06773587,123.89,123.84,8.0759]
[1741682865786,38.06773587,123.89,123.83,36.0]
[1741682866087,0.06154777,123.87,123.85,0.05552892]
[1741682866791,8.075,123.86,123.85,0.05552892]
[1741682867992,8.075,123.86,123.82,43.9374]
[1741682868381,8.0766,123.84,123.8,8.0786]
[1741682868586,8.0766,123.84,123.81,35.84]
[1741682869180,0.05369931,123.84,123.81,43.97741911]
[1741682869390,0.05369931,123.84,123.81,35.89921911]
[1741682869780,0.05369931,123.84,123.83,8.077]
[1741682872193,65.59510246,123.95,123.83,37.56273587]
[1741682872392,58.07954434,123.95,123.83,21.60817775]
[1741682872585,21.60817775,123.93,123.83,21.60817775]
[1741682872887,8.0718,123.91,123.86,8.075]
[1741682873088,21.60817775,123.93,123.87,35.6]
[1741682873294,0.05987693,123.9,123.88,8.0737]
[1741682874085,0.05987693,123.9,123.89,8.0731]
[1741682874788,7.693e-05,123.9,123.89,8.0731]
[1741682876892,7.693e-05,123.9,123.87,35.65978859]
[1741682878295,7.693e-05,123.9,123.88,8.0733]
[1741682878594,7.693e-05,123.9,123.87,35.65978859]
[1741682878796,7.693e-05,123.9,123.87,8.13378859]
[1741682878995,7.693e-05,123.9,123.87,35.43978859]
[1741682879393,7.693e-05,123.9,123.89,8.0731]
[1741682882894,7.693e-05,123.9,123.89,43.3531]
[1741682888698,7.693e-05,123.9,123.89,35.28]
[1741682888993,21.60825468,123.9,123.87,0.05978859]
[1741682889194,5.9324,123.89,123.83,35.0]
[1741682889386,8.075,123.86,123.83,35.0]
[1741682890000,8.99,123.89,123.83,35.0]
[1741682890299,0.05666508,123.87,123.85,0.05308411]
[1741682890494,0.05666508,123.87,123.85,34.94]
[1741682890693,8.0752,123.86,123.85,34.99981507]
[1741682891095,0.05666508,123.87,123.85,34.99981507]
[1741682891598,0.05666508,123.87,123.83,34.9]
[1741682891793,8.0766,123.84,123.83,34.9]
[1741682891992,0.05666508,123.87,123.83,34.9]
[1741682892396,0.05666508,123.87,123.83,42.977]
[1741682892695,0.05666508,123.87,123.84,0.05995]
[1741682894394,8.0754,123.86,123.84,0.05995]
[1741682894594,0.05666508,123.87,123.78,205.6333904]
[1741682894794,21.60817775,123.88,123.79,35.06]
[1741682894994,21.60817775,123.88,123.8,35.08]
[1741682895403,8.99,123.89,123.8,35.08]
[1741682895798,0.05208935,123.86,123.83,0.05415121]
[1741682896003,0.05208935,123.86,123.84,35.1]
[1741682898300,0.05208935,123.86,123.85,8.0757]
[1741682898500,0.05208935,123.86,123.84,35.1]
[1741682900202,0.05208935,123.86,123.85,8.0757]
[1741682900703,0.05208935,123.86,123.84,35.1]
[1741682900902,122.24671943,123.97,123.85,21.60817775]
[1741682901108,128.45541943,123.97,123.88,21.60817775]
[1741682901304,128.45541943,123.97,123.9,21.60817775]
[1741682901498,128.45541943,123.97,123.88,21.60817775]
[1741682901699,8.0696,123.95,123.9,8.072]
[1741682901899,8.0696,123.95,123.91,35.28]
[1741682902104,0.05187793,123.94,123.92,35.3]
[1741682902304,0.05187793,123.94,123.91,0.05526414]
[1741682902606,0.05187793,123.94,123.89,25.8032]
[1741682902802,21.60817775,123.92,123.87,35.3]
[1741682903598,21.60817775,123.92,123.87,28.7511]
[1741682903804,0.05469261,123.91,123.88,0.06064279]
[1741682904007,21.60817775,123.92,123.84,35.28]
[1741682904199,0.05712205,123.91,123.88,0.05351713]
[1741682905611,8.0731,123.89,123.88,0.05351713]
[1741682905811,0.05712205,123.91,123.88,0.05351713]
[1741682906910,8.0731,123.89,123.88,0.05351713]
[1741682907413,8.073,123.9,123.88,0.05351713]
[1741682907608,0.05712205,123.91,123.89,35.14]
[1741682908305,110.32317856,123.99,123.89,35.14]
[1741682908508,88.71500081,123.99,123.9,4.292]
[1741682909716,88.71500081,123.99,123.93,0.05912665]
[1741682909717,0.06105692,123.95,123.93,0.05912665]
[1741682909913,0.06105692,123.95,123.94,35.28]
[1741682910210,88.71500081,123.99,123.97,8.0679]
[1741682910415,88.71500081,123.99,123.94,35.28]
[1741682911214,0.06086147,123.97,123.95,0.05674553]
[1741682911415,6.147e-05,123.97,123.96,8.0685]
[1741682913019,6.147e-05,123.97,123.95,12.33304553]
[1741682913317,6.147e-05,123.97,123.95,4.26394553]
[1741682913818,6.147e-05,123.97,123.96,8.0685]
[1741682914921,6.147e-05,123.97,123.95,12.33264553]
[1741682915421,6.147e-05,123.97,123.96,8.0685]
[1741682916023,6.147e-05,123.97,123.95,8.12564553]
[1741682916325,6.147e-05,123.97,123.95,0.05674553]
[1741682917420,6.147e-05,123.97,123.92,35.16]
[1741682917621,21.60817775,123.96,123.86,8.1586]
[1741682917924,12.6226,123.98,123.87,56.76817775]
[1741682918726,0.05223458,123.94,123.91,0.0602985]
[1741682918926,0.05223458,123.94,123.92,35.18]
[1741682919919,0.05223458,123.94,123.93,8.0705]
[1741682920321,12.6226,123.98,123.92,35.18]
[1741682920526,35.1,124.05,123.97,8.0675]
[1741682920726,8.0657,124.01,123.97,35.1]
[1741682921127,8.0423,124.04,123.97,35.1]
[1741682921327,29.65047775,124.04,123.97,35.1]
[1741682921528,0.0531815,124.01,123.98,0.05656639]
[1741682921827,8.1184815,124.01,123.98,0.05656639]
[1741682922327,0.0531815,124.01,123.98,0.05656639]
[1741682922627,8.1185815,124.01,123.98,0.05656639]
[1741682922928,0.0531815,124.01,123.98,0.05656639]
[1741682923126,8.0659,124.0,123.98,0.05656639]
[1741682923426,0.0531815,124.01,123.98,0.05656639]
[1741682924817,8.0666,123.99,123.98,0.05656639]
[1741682925328,8.066,124.0,123.98,0.05656639]
[1741682925729,0.0531815,124.01,123.98,0.05656639]
[1741682925923,8.0665,124.0,123.98,0.05656639]
[1741682926127,0.0531815,124.01,123.98,0.05656639]
[1741682926530,44.64555267,124.11,123.98,21.66474414]
[1741682926734,8.3034,124.09,123.98,34.01957775]
[1741682927236,8.3034,124.09,123.98,12.4114]
[1741682927435,8.3034,124.09,124.03,8.0636]
[1741682927732,0.06146874,124.07,124.05,0.06138244]
[1741682928127,0.06146874,124.07,124.04,34.92]
[1741682928324,0.06146874,124.07,124.05,0.05454156]
[1741682929335,8.12326874,124.07,124.05,0.05454156]
[1741682929838,8.062,124.06,124.05,0.05454156]
[1741682933728,8.062,124.06,123.96,191.0]
[1741682933729,25.83897775,124.06,123.99,34.84]
[1741682933934,21.60817775,124.04,123.95,34.84]
[1741682934236,8.0669,123.99,123.95,34.84]
[1741682934838,0.05325431,123.98,123.96,0.05457659]
[1741682936136,8.0643,124.03,123.96,0.05457659]
[1741682936341,8.0643,124.03,123.97,21.60817775]
[1741682936641,4.2308,124.06,123.97,21.60817775]
[1741682936837,8.0638,124.04,123.98,8.0668]
[1741682937039,8.0638,124.04,123.99,34.9]
[1741682937242,0.05482204,124.02,124.0,0.05089723]
[1741682937837,4.1559,124.07,124.0,0.05089723]
[1741682938036,8.0623,124.06,124.0,4.24359723]
[1741682938242,4.2361,124.11,124.02,8.0646]
[1741682938434,8.0617,124.07,124.03,34.88]
[1741682939145,0.0514294,124.06,124.04,0.0571804]
[1741682939544,8.0627,124.05,124.04,0.0571804]
[1741682939939,8.1138294,124.06,124.04,0.0571804]
[1741682940942,0.0514294,124.06,124.04,0.0571804]
[1741682941645,8.0627,124.05,124.04,0.0571804]
[1741682944148,8.064,124.03,124.02,34.9]
[1741682944453,0.0514294,124.06,123.96,8.4423]
[1741682944642,0.0514294,124.06,123.96,12.1654]
[1741682944643,21.60817775,124.05,123.96,12.1654]
[1741682944848,8.316,124.04,123.97,34.86]
[1741682945049,8.316,124.04,123.98,8.0671]
[1741682945348,8.316,124.04,123.97,34.86]
[1741682945550,8.316,124.04,124.0,0.05520052]
[1741682945551,8.0653,124.01,124.0,0.05520052]
[1741682945751,0.05380043,124.02,124.0,0.05520052]
[1741682946141,8.0653,124.01,124.0,0.05520052]
[1741682946855,8.0674,123.98,123.97,34.9]
[1741682947053,8.0674,123.98,123.96,34.88]
[1741682947351,8.0674,123.98,123.96,34.86]
[1741682947947,8.0679,123.97,123.96,34.91455831]
[1741682948147,0.05162775,123.98,123.96,34.91455831]
[1741682948853,8.316,124.04,123.96,34.91455831]
[1741682949051,44.64555267,124.07,123.97,21.60817775]
[1741682949251,44.64555267,124.07,123.99,21.60817775]
[1741682949454,44.64555267,124.07,124.0,34.84]
[1741682950255,0.05812564,124.05,124.02,0.05814611]
[1741682952453,19.47033405,124.12,124.02,0.05814611]
[1741682952652,8.0611,124.08,124.03,8.0636]
[1741682952850,19.47033405,124.12,124.04,34.98]
[1741682953255,21.60817775,124.11,124.04,34.98]
[1741682953455,0.0552518,124.09,124.07,0.05096976]
[1741682953656,21.66342955,124.09,124.04,34.98]
[1741682953851,21.66342955,124.09,123.99,8.0663]
[1741682954055,21.60817775,124.09,124.01,34.96]
[1741682954255,21.60817775,124.07,123.98,35.0]
[1741682954463,8.2822,124.06,123.98,35.0]
[1741682954758,0.05297968,124.03,124.01,0.05581787]
[1741682955358,8.0646,124.02,124.01,0.05581787]
[1741682956463,8.11747968,124.03,124.01,0.05581787]
[1741682957058,0.05297968,124.03,124.01,0.05581787]
[1741682958669,8.11737968,124.03,124.01,0.05581787]
[1741682959162,0.05297968,124.03,124.02,42.9846]
[1741682959361,0.05297968,124.03,124.02,34.92]
[1741682960863,0.05297968,124.03,124.02,42.9846]
[1741682961263,8.061,124.08,124.04,8.0633]
[1741682961767,12.4283,124.09,124.02,34.92]
[1741682962363,0.05258763,124.07,124.04,0.05511194]
[1741682962964,8.0622,124.06,124.04,0.05511194]
[1741682963363,0.05258763,124.07,124.04,0.05511194]
[1741682963558,8.0624,124.06,124.04,0.05511194]
[1741682963769,0.05258763,124.07,124.04,0.05511194]
[1741682963964,0.05258763,124.07,124.05,8.0626]
[1741682964158,0.05258763,124.07,124.06,34.74]
[1741682964559,12.3987,124.12,124.06,34.74]
[1741682964762,8.1802,124.13,124.06,34.74]
[1741682965166,16.2381,124.13,124.06,34.74]
[1741682965372,8.1802,124.13,124.06,34.74]
[1741682965562,44.64555267,124.14,124.06,56.34817775]
[1741682965867,0.05984889,124.11,124.08,0.06050186]
[1741682966362,0.05984889,124.11,124.09,34.7]
[1741682966866,11.11383405,124.16,124.09,34.7]
[1741682967074,11.11383405,124.16,124.09,38.7771]
[1741682967571,11.11383405,124.16,124.1,8.2158]
[1741682968071,0.0545832,124.14,124.12,0.05797428]
[1741682968271,0.0545832,124.14,124.13,34.86]
[1741682969373,0.0545832,124.14,124.13,42.9175]
[1741682969774,66.25373042,124.21,124.13,34.86]
[1741682970274,74.30643042,124.21,124.15,8.056]
[1741682970473,44.64555267,124.21,124.13,34.86]
[1741682970672,8.0532,124.2,124.13,34.86]
[1741682970873,0.02820643,124.18,124.16,0.06009446]
[1741682971075,44.64555267,124.21,124.17,34.92]
[1741682971473,554.12790281,124.25,124.17,34.92]
[1741682971474,278.7184,124.25,124.17,34.92]
[1741682972068,278.7184,124.25,124.1,29.82397775]
[1741682972274,21.60817775,124.22,124.11,34.92]
[1741682972577,21.60817775,124.24,124.16,0.05548586]
[1741682972871,8.0542,124.18,124.17,34.94]
[1741682973176,21.60817775,124.22,124.17,34.94]
[1741682973976,8.0542,124.18,124.17,34.94]
[1741682974177,21.60817775,124.22,124.17,34.94]
[1741682974578,8.0536,124.19,124.17,34.94]
[1741682974975,8.0536,124.19,124.17,34.99364926]
[1741682975275,278.7184,124.25,124.17,34.99364926]
[1741682975676,8.0521,124.22,124.17,34.94]
[1741682975874,8.0521,124.22,124.2,0.05938195]
[1741682976770,278.7184,124.25,124.21,34.94]
[1741682977575,21.60817775,124.24,124.2,0.05938195]
[1741682977770,21.60817775,124.22,124.17,34.9]
[1741682978080,8.0542,124.18,124.17,34.9]
[1741682978780,0.0551546,124.19,124.17,34.9]
[1741682979674,8.1092546,124.19,124.17,34.9]
[1741682980074,0.0551546,124.19,124.17,34.9]
[1741682980675,8.0542,124.18,124.17,34.9]
[1741682982983,8.1088546,124.19,124.17,34.9]
[1741682983186,0.0551546,124.19,124.17,34.9]
[1741682983983,8.0542,124.18,124.17,34.9]
[1741682984287,0.0551546,124.19,124.16,0.05832421]
[1741682984584,8.0549,124.17,124.16,0.05832421]
[1741682986283,8.0545,124.18,124.16,0.05832421]
[1741682986487,0.0551546,124.19,124.16,0.05832421]
[1741682986886,8.0549,124.17,124.16,0.05832421]
[1741682989697,24.02817775,124.17,124.09,34.84]
[1741682989886,21.60817775,124.15,124.09,34.84]
[1741682990182,8.0587,124.12,124.09,34.84]
[1741682990387,8.4132,124.16,124.09,34.84]
[1741682990789,0.05485727,124.14,124.11,0.0537818]
[1741682991692,8.0575,124.13,124.11,0.0537818]
[1741682991986,0.05485727,124.14,124.11,0.0537818]
[1741682992992,8.0581,124.13,124.11,0.0537818]
[1741682993191,0.05485727,124.14,124.11,0.0537818]
[1741682993387,8.0581,124.12,124.11,0.0537818]
[1741682997301,8.0607,124.09,124.07,34.52]
[1741682997691,25.71117775,124.15,124.07,34.52]
[1741682997891,8.0586,124.12,124.09,8.0596]
[1741682998094,8.0586,124.12,124.07,34.52]
[1741682998297,25.71117775,124.15,124.08,8.0602]
[1741682998499,0.06095854,124.11,124.08,8.11896383]
[1741682998696,0.06095854,124.11,124.08,0.05876383]
[1741682999600,0.06095854,124.11,124.1,8.0594]
[1741682999790,0.06095854,124.11,124.1,42.4594]
[1741683000596,0.06095854,124.11,124.1,34.4]
[1741683004400,0.06095854,124.11,124.09,34.22]
[1741683005504,8.11985854,124.11,124.09,34.22]
[1741683005704,0.06095854,124.11,124.09,34.22]
[1741683006107,8.0594,124.1,124.09,34.22]
[1741683006499,0.06095854,124.11,124.09,34.22]
[1741683007007,0.06095854,124.11,124.1,8.0594]
[1741683007706,11.11383405,124.18,124.13,8.0574]
[1741683007907,11.11383405,124.18,124.13,34.14]
[1741683008102,8.0552,124.17,124.13,34.14]
[1741683008503,11.11383405,124.18,124.13,34.14]
[1741683008703,8.0566,124.15,124.13,34.14]
[1741683008909,0.05516525,124.17,124.14,0.0611469]
[1741683009209,8.0562,124.15,124.14,0.0611469]
[1741683010103,8.0558,124.16,124.14,0.0611469]
[1741683010308,0.05516525,124.17,124.14,0.0611469]
[1741683010910,0.05516525,124.17,124.14,8.1176469]
[1741683011305,0.05516525,124.17,124.14,34.1611469]
[1741683011504,0.05516525,124.17,124.15,8.0558]
[1741683011707,0.05516525,124.17,124.14,34.1611469]
[1741683012111,44.64555267,124.21,124.18,8.054]
[1741683012315,44.64555267,124.21,124.19,34.1]
[1741683013012,44.64555267,124.24,124.19,34.1]
[1741683013307,0.05203394,124.21,124.19,34.15344087]
[1741683013504,0.05203394,124.21,124.2,8.0525]
[1741683013705,44.64555267,124.24,124.19,34.15344087]
[1741683014217,44.64555267,124.24,124.21,21.60817775]
[1741683014416,44.64555267,124.24,124.22,34.0]
[1741683014714,88.71500081,124.25,124.22,34.0]
[1741683014916,88.71500081,124.25,124.22,34.05144589]
[1741683015117,38.94901183,124.25,124.23,21.60817775]
[1741683015313,19.59947386,124.3,124.25,8.0497]
[1741683015616,11.14777386,124.3,124.26,33.98]
[1741683015818,11.14777386,124.3,124.26,34.03100359]
[1741683016010,11.14777386,124.3,124.27,21.60817775]
[1741683016406,11.14777386,124.3,124.26,34.03100359]
[1741683017119,11.14777386,124.3,124.27,8.0483]
[1741683017419,11.14777386,124.3,124.26,34.03100359]
[1741683017920,3.9422,124.33,124.26,34.03100359]
[1741683018124,8.0463,124.31,124.26,34.03100359]
[1741683018418,3.9422,124.33,124.26,42.07960359]
[1741683018619,8.0462,124.31,124.26,34.03100359]
[1741683019022,3.9422,124.33,124.26,34.03100359]
[1741683020514,8.0459,124.31,124.26,34.03100359]
[1741683020710,3.9422,124.33,124.26,34.03100359]
[1741683021109,8.0463,124.31,124.26,42.08000359]
[1741683021315,3.9422,124.33,124.26,34.03100359]
[1741683021712,8.0468,124.3,124.27,33.86]
[1741683022115,3.9422,124.33,124.27,33.92202635]
[1741683022420,11.987,124.33,124.28,8.0476]
[1741683022616,3.9422,124.33,124.27,33.92202635]
[1741683022815,3.9422,124.33,124.29,8.0467]
[1741683023016,3.9422,124.33,124.3,33.9]
[1741683023217,3.9422,124.33,124.3,33.95703006]
[1741683023417,11.9873,124.33,124.3,33.95703006]
[1741683023818,3.9422,124.33,124.3,33.95703006]
[1741683024216,4.2686,124.35,124.3,33.95703006]
[1741683025119,8.0458,124.31,124.3,0.05703006]
[1741683026025,25.87677775,124.35,124.3,0.05703006]
[1741683026227,4.2686,124.35,124.3,0.05703006]
[1741683026527,25.87677775,124.35,124.3,0.05703006]
[1741683027231,8.045,124.33,124.3,0.05703006]
[1741683028532,4.2686,124.35,124.3,0.05703006]
[1741683029730,8.0458,124.31,124.3,0.05703006]
[1741683030135,4.2686,124.35,124.3,0.05703006]
[1741683031230,8.0452,124.32,124.3,0.05703006]
[1741683031537,4.2686,124.35,124.3,0.05703006]
[1741683032437,8.0445,124.34,124.3,8.10343006]
[1741683032633,4.2686,124.35,124.3,0.05703006]
[1741683033028,4.2686,124.35,124.3,33.87703006]
[1741683033232,3.9466,124.37,124.3,55.48520781]
[1741683033434,3.9466,124.37,124.32,21.60817775]
[1741683033630,12.0219,124.4,124.35,8.0428]
[1741683033833,15.9711,124.4,124.33,33.9180304]
[1741683034031,7.9309,124.4,124.33,33.86]
[1741683034226,33.94,124.46,124.35,0.05148338]
[1741683034433,3.9817,124.43,124.35,0.05148338]
[1741683034637,3.9817,124.43,124.36,34.0]
[1741683034844,8.0395,124.41,124.38,0.05277881]
[1741683035033,3.9817,124.43,124.38,0.05277881]
[1741683035433,8.0406,124.39,124.38,0.05277881]
[1741683035635,3.9817,124.43,124.36,34.0]
[1741683036541,8.0394,124.41,124.36,42.0421]
[1741683036734,3.9817,124.43,124.36,34.0]
[1741683036938,3.9817,124.43,124.38,0.0588031]
[1741683036939,0.05330267,124.41,124.38,0.0588031]
[1741683037333,0.05330267,124.41,124.39,33.96]
[1741683037733,0.05330267,124.41,124.38,0.0588031]
[1741683038737,0.05330267,124.41,124.34,33.98]
[1741683038942,0.05330267,124.41,124.32,33.96]
[1741683039242,8.0418,124.38,124.33,33.96]
[1741683039439,25.58987775,124.43,124.33,33.96]
[1741683039638,34.04,124.42,124.33,33.96]
[1741683039839,8.0433,124.35,124.33,33.96]
[1741683040039,0.05316457,124.39,124.27,270.8952]
[1741683040343,0.05183154,124.34,124.33,0.0573511]
[1741683040544,4.2035,124.39,124.33,34.1373511]
[1741683041039,0.06136948,124.35,124.33,34.1373511]
[1741683042035,0.06136948,124.35,124.34,8.0439]
[1741683042239,0.06136948,124.35,124.33,34.1373511]
[1741683043151,3.9817,124.43,124.33,34.1373511]
[1741683043339,12.1143,124.43,124.33,34.1373511]
[1741683043542,12.1143,124.43,124.33,34.08]
[1741683043847,8.041,124.39,124.34,8.0434]
[1741683044144,12.1143,124.43,124.33,34.08]
[1741683044337,0.05188703,124.38,124.35,0.05762408]
[1741683044538,0.05188703,124.38,124.36,34.32]
[1741683044943,0.05188703,124.38,124.36,34.38055585]
[1741683045340,8.0419,124.37,124.36,34.38055585]
[1741683045536,0.05188703,124.38,124.36,34.38055585]
[1741683045836,8.0382,124.43,124.38,8.0407]
[1741683046042,12.7461,124.47,124.38,8.0407]
[1741683046241,12.7461,124.47,124.36,55.92817775]
[1741683046642,109.47593351,124.49,124.39,21.60817775]
[1741683046842,33.16365691,124.47,124.4,34.75139519]
[1741683047046,33.16365691,124.47,124.4,34.7]
[1741683047244,33.16365691,124.47,124.42,0.05645675]
[1741683048243,42.17544988,124.53,124.47,8.035]
[1741683048439,747.58614726,124.59,124.52,21.60817775]
[1741683048647,747.58614726,124.59,124.56,21.60817775]
[1741683048852,747.58614726,124.59,124.57,35.34]
[1741683049347,747.58614726,124.59,124.53,21.60817775]
[1741683049651,747.58614726,124.59,124.57,0.05348237]
[1741683049948,747.58614726,124.59,124.52,35.4]
[1741683050149,56.26507258,124.53,124.49,35.64]
[1741683050347,56.26507258,124.53,124.5,35.86]
[1741683050548,6.26507258,124.53,124.5,35.86]
[1741683050743,6.26507258,124.53,124.47,35.96]
[1741683050951,14.29677258,124.53,124.44,70.77526677]
[1741683051249,8.2477,124.52,124.44,36.02]
[1741683051450,36.02,124.51,124.41,36.02]
[1741683051655,0.05348237,124.5,124.47,0.0599475]
[1741683051841,34.75526677,124.5,124.45,383.53666804]
[1741683052044,34.75526677,124.48,124.45,383.53666804]
[1741683052547,36.12,124.47,124.45,339.81566804]
[1741683052742,42.79136677,124.46,124.45,264.43366804]